bitfinex-derivatives/quotes_BTCF0:USTF0_20260106
["timestamp","ask_amount","ask_price","bid_price","bid_amount"]
[1767671679995,0.10523274,93820.0,93801.0,0.010661]
[1767671680296,0.010659,93819.0,93798.0,0.07798916]
[1767671680694,0.02126872,93819.0,93798.0,0.07798916]
[1767671680998,0.01060972,93819.0,93799.0,0.010661]
[1767671681202,0.10523274,93819.0,93799.0,0.010661]
[1767671682203,0.11589174,93819.0,93799.0,0.010661]
[1767671686400,0.10523274,93818.0,93799.0,0.010661]
[1767671686997,0.10523274,93818.0,93798.0,0.05998916]
[1767671687191,0.10523274,93818.0,93799.0,0.010661]
[1767671688300,0.010659,93817.0,93798.0,0.05998916]
[1767671688500,0.11589174,93817.0,93798.0,0.05998916]
[1767671688892,0.11589174,93817.0,93796.0,0.010661]
[1767671691496,0.10523274,93816.0,93796.0,0.010661]
[1767671692405,0.11589174,93815.0,93796.0,0.010661]
[1767671693103,0.10523274,93815.0,93799.0,0.010661]
[1767671694710,0.10523274,93815.0,93793.0,0.09098916]
[1767671695303,0.10523274,93815.0,93799.0,0.010661]
[1767671695910,0.10523274,93815.0,93793.0,0.09098916]
[1767671697116,0.10523274,93815.0,93800.0,0.010661]
[1767671699329,0.01049926,93814.0,93797.0,0.010661]
[1767671699529,0.11020373,93813.0,93797.0,0.010661]
[1767671701329,0.00995109,93804.0,93784.0,0.010663]
[1767671701630,0.10973693,93803.0,93793.0,0.010662]
[1767671701831,0.10973693,93794.0,93790.0,0.09064]
[1767671702138,0.09978584,93794.0,93783.0,0.09064]
[1767671702329,0.00995109,93797.0,93783.0,0.09064]
[1767671702526,0.00995109,93797.0,93783.0,0.06364]
[1767671702823,0.09978584,93799.0,93783.0,0.06364]
[1767671703230,0.010661,93804.0,93783.0,0.06364]
[1767671703231,0.09978584,93796.0,93783.0,0.06364]
[1767671703435,0.09978584,93796.0,93779.0,0.00213268]
[1767671703436,0.10973693,93792.0,93779.0,0.00213268]
[1767671703931,0.09978584,93792.0,93780.0,0.09064]
[1767671704234,0.10973693,93798.0,93780.0,0.1002686]
[1767671704431,0.10973693,93798.0,93781.0,0.010663]
[1767671706538,0.09978584,93803.0,93782.0,0.0096286]
[1767671706725,0.10973693,93798.0,93783.0,0.010663]
[1767671706925,0.10973693,93797.0,93783.0,0.010663]
[1767671707127,0.10973693,93796.0,93779.0,0.01279568]
[1767671707324,0.10973693,93796.0,93741.0,0.09909368]
[1767671707325,0.10973693,93782.0,93763.0,0.0096286]
[1767671707531,0.09978584,93782.0,93764.0,0.1002686]
[1767671707739,0.00995109,93786.0,93765.0,0.0096286]
[1767671707938,0.09978584,93788.0,93769.0,0.0096286]
[1767671709138,0.09978584,93788.0,93774.0,0.010664]
[1767671709439,0.09978584,93788.0,93764.0,0.09064]
[1767671709440,0.10973693,93794.0,93776.0,0.010664]
[1767671709641,0.00995109,93791.0,93776.0,0.010664]
[1767671709842,0.10973693,93785.0,93772.0,0.010664]
[1767671710134,0.09978584,93792.0,93774.0,0.0096286]
[1767671710337,0.10973693,93792.0,93772.0,0.09689331]
[1767671710530,0.10973693,93792.0,93779.0,0.010663]
[1767671711137,0.09978584,93792.0,93779.0,0.010663]
[1767671711341,0.10973693,93796.0,93779.0,0.010663]
[1767671711538,0.10973693,93794.0,93779.0,0.010663]
[1767671711745,0.10973693,93793.0,93779.0,0.010663]
[1767671711932,0.10973693,93789.0,93779.0,0.010663]
[1767671712243,0.10973693,93789.0,93774.0,0.09064]
[1767671713139,0.10973693,93789.0,93778.0,0.010663]
[1767671713738,0.09978584,93789.0,93778.0,0.010663]
[1767671715243,0.10973693,93787.0,93774.0,0.09064]
[1767671717145,0.10973693,93787.0,93777.0,0.010664]
[1767671717948,0.10973693,93787.0,93774.0,0.086304]
[1767671718147,0.10973693,93787.0,93777.0,0.010664]
[1767671718751,0.10973693,93787.0,93777.0,0.10897856]
[1767671719644,0.09978584,93787.0,93779.0,0.010663]
[1767671720956,0.10973693,93787.0,93777.0,0.09831456]
[1767671725452,0.10973693,93787.0,93778.0,0.010663]
[1767671725655,0.09978584,93787.0,93777.0,0.09831456]
[1767671725953,0.09978584,93787.0,93778.0,0.010663]
[1767671728651,0.09064,93798.0,93777.0,0.09831456]
[1767671728652,0.09978584,93792.0,93777.0,0.09831456]
[1767671728962,0.09978584,93792.0,93782.0,0.010663]
[1767671729161,0.09978584,93792.0,93780.0,0.09831456]
[1767671729856,0.092812,93809.0,93789.0,0.010662]
[1767671730060,0.092812,93809.0,93790.0,0.09831456]
[1767671731745,0.0116184,93805.0,93790.0,0.09831456]
[1767671731951,0.0116184,93803.0,93790.0,0.09831456]
[1767671733061,0.0116184,93803.0,93791.0,0.010662]
[1767671733457,0.0116184,93803.0,93785.0,0.09068]
[1767671733666,0.09522913,93804.0,93790.0,0.09831456]
[1767671733960,0.09831456,93830.0,93794.0,0.11016633]
[1767671734256,0.09068,93828.0,93800.0,0.09831456]
[1767671734665,0.010658,93823.0,93803.0,0.010661]
[1767671736061,0.0116184,93819.0,93803.0,0.010661]
[1767671736264,0.10684753,93819.0,93803.0,0.010661]
[1767671736448,0.0116184,93818.0,93803.0,0.010661]
[1767671736864,0.0116184,93818.0,93800.0,0.10897556]
[1767671737062,0.0116184,93817.0,93800.0,0.10897556]
[1767671741269,0.0116184,93817.0,93800.0,0.09797556]
[1767671741668,0.0116184,93817.0,93800.0,0.08731456]
[1767671741868,0.0116184,93810.0,93796.0,0.010661]
[1767671743565,0.0116184,93810.0,93795.0,0.09068]
[1767671743566,0.0116184,93814.0,93798.0,0.010661]
[1767671743871,0.0116184,93814.0,93800.0,0.010661]
[1767671744070,0.0116184,93814.0,93800.0,0.10897556]
[1767671745468,0.0116184,93814.0,93800.0,0.09831456]
[1767671746375,0.0116184,93813.0,93800.0,0.09831456]
[1767671746770,0.09522913,93813.0,93800.0,0.09831456]
[1767671746976,0.0116184,93812.0,93800.0,0.09831456]
[1767671749078,0.09522913,93813.0,93800.0,0.09831456]
[1767671749378,0.10684753,93813.0,93800.0,0.09831456]
[1767671750378,0.10684753,93813.0,93797.0,0.010661]
[1767671750678,0.10684753,93813.0,93801.0,0.010661]
[1767671750874,0.10684753,93813.0,93800.0,0.09831456]
[1767671751478,0.09831456,93820.0,93792.0,0.09064]
[1767671751479,0.01066,93810.0,93792.0,0.09064]
[1767671751780,0.0116184,93809.0,93793.0,0.010662]
[1767671752278,0.09522913,93811.0,93793.0,0.010662]
[1767671752680,0.10684753,93811.0,93793.0,0.010662]
[1767671753180,0.11750753,93811.0,93793.0,0.010662]
[1767671753377,0.0116184,93810.0,93793.0,0.010662]
[1767671755881,0.0116184,93810.0,93795.0,0.010662]
[1767671756673,0.0116184,93810.0,93792.0,0.079302]
[1767671757183,0.0116184,93810.0,93795.0,0.010662]
[1767671758780,0.01315593,93813.0,93795.0,0.010662]
[1767671759084,0.01066,93812.0,93795.0,0.010662]
[1767671759279,0.02381593,93812.0,93795.0,0.010662]
[1767671760985,0.11190789,93816.0,93800.0,0.09831456]
[1767671761284,0.01218164,93815.0,93800.0,0.09831456]
[1767671761881,0.09972625,93816.0,93801.0,0.010661]
[1767671762188,0.09064,93817.0,93801.0,0.010661]
[1767671762386,0.01218164,93816.0,93801.0,0.010661]
[1767671764387,0.01218164,93816.0,93800.0,0.09497556]
[1767671764584,0.02283964,93827.0,93808.0,0.01066]
[1767671764788,0.09064,93826.0,93810.0,0.09831456]
[1767671764987,0.10282164,93826.0,93810.0,0.09831456]
[1767671765188,0.01218164,93825.0,93810.0,0.09831456]
[1767671767085,0.09064,93826.0,93812.0,0.01066]
[1767671767282,0.09064,93826.0,93816.0,0.09831456]
[1767671767495,0.09210533,93832.0,93816.0,0.09831456]
[1767671767785,0.09210533,93832.0,93819.0,0.09831456]
[1767671767985,0.09210533,93832.0,93820.0,0.09831456]
[1767671768995,0.09064,93833.0,93820.0,0.10897356]
[1767671769184,0.09064,93833.0,93820.0,0.09831456]
[1767671769389,0.09064,93837.0,93828.0,0.09831456]
[1767671769582,0.00213132,93839.0,93828.0,0.09831456]
[1767671770091,0.00213132,93839.0,93823.0,0.010658]
[1767671772180,0.01218164,93837.0,93820.0,0.09831456]
[1767671772484,0.01218164,93837.0,93820.0,0.10897356]
[1767671773790,0.00213132,93839.0,93824.0,0.010658]
[1767671776492,0.01218164,93838.0,93821.0,0.010659]
[1767671776695,0.01218164,93833.0,93818.0,0.010659]
[1767671776894,0.02283864,93837.0,93820.0,0.09831456]
[1767671777790,0.01218164,93837.0,93820.0,0.09831456]
[1767671778393,0.01218164,93837.0,93820.0,0.10897356]
[1767671779796,0.01218164,93837.0,93820.0,0.08197356]
[1767671780490,0.01218164,93837.0,93820.0,0.010659]
[1767671780895,0.01218164,93837.0,93817.0,0.10950064]
[1767671781201,0.01218164,93837.0,93818.0,0.01308662]
[1767671781900,0.00213132,93839.0,93823.0,0.010658]
[1767671787404,0.00213132,93839.0,93824.0,0.01308662]
[1767671787704,0.00213132,93839.0,93825.0,0.010658]
[1767671788105,0.00213132,93839.0,93825.0,0.10707202]
[1767671795216,0.00213132,93839.0,93825.0,0.09207202]
[1767671795805,0.00213132,93839.0,93825.0,0.10273002]
[1767671796306,0.00213132,93839.0,93827.0,0.010658]
[1767671800535,0.00213132,93839.0,93825.0,0.09207202]
[1767671800723,0.00213132,93839.0,93825.0,0.10521173]
[1767671801033,0.00213132,93839.0,93826.0,0.010658]
[1767671802933,0.00213132,93839.0,93825.0,0.10521173]
[1767671802934,0.00213132,93839.0,93825.0,0.10486973]
[1767671803436,0.00213132,93839.0,93826.0,0.010658]
[1767671804833,0.00213132,93839.0,93828.0,0.010658]
[1767671807937,0.00213132,93839.0,93827.0,0.010658]
[1767671808525,0.00213132,93839.0,93825.0,0.10486973]
[1767671809238,0.00213132,93839.0,93826.0,0.010658]
[1767671809835,0.00213132,93839.0,93828.0,0.010658]
[1767671810639,0.00213132,93839.0,93827.0,0.10836244]
[1767671814239,0.00213132,93839.0,93829.0,0.10522273]
[1767671814442,0.00213132,93839.0,93829.0,0.11836244]
[1767671814940,0.00213132,93839.0,93830.0,0.09426989]
[1767671818431,0.00213132,93839.0,93830.0,0.07526989]
[1767671818831,0.09064,93844.0,93835.0,0.01244005]
[1767671819030,0.09064,93848.0,93835.0,0.01244005]
[1767671820243,0.09064,93848.0,93836.0,0.010657]
[1767671820543,0.09064,93848.0,93837.0,0.01244005]
[1767671822034,0.101296,93848.0,93833.0,0.02475403]
[1767671822238,0.010656,93842.0,93825.0,0.10834721]
[1767671822437,0.01305447,93841.0,93824.0,0.010658]
[1767671823148,0.01305447,93841.0,93826.0,0.010658]
[1767671823349,0.10110157,93842.0,93826.0,0.010658]
[1767671826150,0.10110157,93842.0,93823.0,0.01409703]
[1767671826651,0.11415604,93842.0,93823.0,0.01409703]
[1767671827152,0.11415604,93842.0,93826.0,0.010658]
[1767671828758,0.10350004,93842.0,93826.0,0.010658]
[1767671828946,0.010656,93845.0,93824.0,0.10834721]
[1767671829143,0.09064,93844.0,93825.0,0.01409703]
[1767671830153,0.09064,93844.0,93829.0,0.010658]
[1767671830651,0.10369447,93844.0,93826.0,0.010658]
[1767671830853,0.010656,93843.0,93826.0,0.010658]
[1767671831054,0.010656,93841.0,93826.0,0.010658]
[1767671834053,0.010656,93841.0,93823.0,0.01409703]
[1767671834356,0.010656,93841.0,93826.0,0.010658]
[1767671835064,0.01305447,93839.0,93826.0,0.010658]
[1767671835358,0.09044557,93840.0,93822.0,0.087298]
[1767671835762,0.09044557,93840.0,93822.0,0.10139503]
[1767671837162,0.09044557,93840.0,93826.0,0.010658]
[1767671837461,0.09044557,93840.0,93822.0,0.10139503]
[1767671837762,0.01305447,93842.0,93823.0,0.01409703]
[1767671838160,0.01305447,93842.0,93826.0,0.010658]
[1767671838653,0.09064,93844.0,93826.0,0.010658]
[1767671838859,0.10369447,93844.0,93826.0,0.010658]
[1767671839062,0.01305447,93841.0,93823.0,0.010658]
[1767671840163,0.010657,93839.0,93823.0,0.010658]
[1767671841652,0.010657,93839.0,93822.0,0.10105303]
[1767671842160,0.010657,93839.0,93823.0,0.010658]
[1767671842462,0.01305447,93841.0,93822.0,0.10105303]
[1767671842652,0.09044557,93842.0,93823.0,0.01409703]
[1767671842653,0.09822552,93840.0,93823.0,0.01409703]
[1767671844165,0.09822552,93840.0,93825.0,0.010658]
[1767671844564,0.010656,93841.0,93825.0,0.010658]
[1767671844961,0.010656,93841.0,93825.0,0.02475503]
[1767671847363,0.101296,93844.0,93825.0,0.02475503]
[1767671847562,0.010656,93842.0,93825.0,0.02475503]
[1767671848163,0.010656,93842.0,93827.0,0.010658]
[1767671848758,0.09064,93844.0,93827.0,0.010658]
[1767671849064,0.09064,93844.0,93829.0,0.010658]
[1767671849366,0.09064,93844.0,93825.0,0.00575503]
[1767671850160,0.09064,93844.0,93829.0,0.010658]
[1767671851162,0.02391856,93843.0,93826.0,0.010658]
[1767671851366,0.01326256,93842.0,93826.0,0.010658]
[1767671851566,0.010657,93839.0,93823.0,0.10490818]
[1767671852370,0.02391856,93842.0,93823.0,0.10490818]
[1767671853067,0.010656,93840.0,93823.0,0.10490818]
[1767671853464,0.10679674,93838.0,93823.0,0.010658]
[1767671853670,0.01326256,93836.0,93823.0,0.010658]
[1767671853867,0.09353418,93837.0,93823.0,0.010658]
[1767671854869,0.01326256,93839.0,93823.0,0.010658]
[1767671855170,0.09822552,93840.0,93823.0,0.010658]
[1767671855371,0.11148808,93840.0,93823.0,0.010658]
[1767671859580,0.01326256,93840.0,93823.0,0.010658]
[1767671859782,0.09064,93842.0,93825.0,0.010658]
[1767671860082,0.10390256,93842.0,93825.0,0.010658]
[1767671860377,0.01326256,93841.0,93825.0,0.010658]
[1767671860578,0.01326256,93841.0,93822.0,0.09342407]
[1767671860579,0.01326256,93841.0,93827.0,0.010658]
[1767671861590,0.09064,93842.0,93827.0,0.010658]
[1767671861790,0.10390256,93842.0,93827.0,0.010658]
[1767671863400,0.01326256,93841.0,93827.0,0.010658]
[1767671863898,0.10679674,93841.0,93827.0,0.010658]
[1767671864199,0.09353418,93841.0,93827.0,0.010658]
[1767671864798,0.09353418,93841.0,93823.0,0.00176555]
[1767671865199,0.09353418,93841.0,93827.0,0.010658]
[1767671866395,0.01326256,93838.0,93826.0,0.010658]
[1767671868501,0.01326256,93838.0,93823.0,0.010658]
[1767671871998,0.01326256,93838.0,93820.0,0.09822552]
[1767671872501,0.01326256,93838.0,93820.0,0.08322552]
[1767671872702,0.01326256,93838.0,93824.0,0.010658]
[1767671875205,0.01326256,93838.0,93826.0,0.010658]
[1767671875406,0.09353418,93839.0,93826.0,0.010658]
[1767671877108,0.09353418,93839.0,93828.0,0.010658]
[1767671877404,0.09353418,93839.0,93825.0,0.010658]
[1767671877713,0.10655144,93839.0,93825.0,0.010658]
[1767671880211,0.10655144,93839.0,93820.0,0.08720058]
[1767671880513,0.10655144,93839.0,93820.0,0.10554258]
[1767671881214,0.10655144,93839.0,93825.0,0.010658]
[1767671882016,0.10655144,93839.0,93827.0,0.010658]
[1767671882813,0.10655144,93839.0,93824.0,0.010658]
[1767671883112,0.01296975,93838.0,93824.0,0.010658]
[1767671883904,0.01296975,93838.0,93821.0,0.010659]
[1767671884100,0.01296975,93837.0,93820.0,0.09822552]
[1767671884304,0.09064,93842.0,93829.0,0.00750254]
[1767671884514,0.09064,93842.0,93832.0,0.010657]
[1767671885008,0.10360975,93842.0,93828.0,0.010658]
[1767671885513,0.01296975,93841.0,93828.0,0.010658]
[1767671886721,0.01296975,93841.0,93824.0,0.010658]
[1767671887010,0.02362575,93841.0,93824.0,0.010658]
[1767671888421,0.02362575,93841.0,93822.0,0.0853192]
[1767671889217,0.02362575,93841.0,93824.0,0.010658]
[1767671890816,0.01296975,93840.0,93824.0,0.010658]
[1767671891018,0.01296975,93839.0,93821.0,0.010659]
[1767671891214,0.10886359,93835.0,93821.0,0.010659]
[1767671891413,0.10886359,93831.0,93818.0,0.101299]
[1767671891724,0.01296975,93830.0,93820.0,0.010659]
[1767671892018,0.01296975,93830.0,93818.0,0.09064]
[1767671892214,0.01296975,93830.0,93814.0,0.010659]
[1767671892418,0.01296975,93828.0,93812.0,0.09064]
[1767671895318,0.01296975,93828.0,93813.0,0.010659]
[1767671895618,0.01296975,93828.0,93812.0,0.09064]
[1767671895821,0.01196975,93828.0,93812.0,0.09064]
[1767671896324,0.01196975,93828.0,93812.0,0.0973]
[1767671897526,0.02262775,93828.0,93812.0,0.0973]
[1767671897720,0.01296975,93824.0,93806.0,0.01066]
[1767671897921,0.02362875,93821.0,93803.0,0.05800033]
[1767671898127,0.010659,93819.0,93801.0,0.101301]
[1767671898320,0.01296975,93821.0,93803.0,0.010661]
[1767671898522,0.09822552,93820.0,93803.0,0.010661]
[1767671898823,0.01296975,93821.0,93803.0,0.010661]
[1767671899020,0.010659,93820.0,93803.0,0.010661]
[1767671899223,0.01296975,93817.0,93801.0,0.09064]
[1767671899810,0.09589384,93818.0,93802.0,0.010661]
[1767671901821,0.01296975,93821.0,93805.0,0.01066]
[1767671903830,0.01296975,93821.0,93801.0,0.1833012]
[1767671905127,0.01296975,93821.0,93802.0,0.010661]
[1767671908121,0.02362875,93821.0,93802.0,0.010661]
[1767671909229,0.02362875,93821.0,93804.0,0.01066]
[1767671911532,0.02362875,93821.0,93801.0,0.1829612]
[1767671912229,0.02362875,93821.0,93804.0,0.01066]
[1767671913230,0.01296975,93821.0,93805.0,0.01066]
[1767671913634,0.09589384,93823.0,93805.0,0.01066]
[1767671913820,0.10713039,93823.0,93805.0,0.01066]
[1767671914319,0.01123655,93822.0,93805.0,0.01066]
[1767671914721,0.01013655,93822.0,93805.0,0.01066]
[1767671917637,0.01013655,93822.0,93802.0,0.010661]
[1767671917836,0.02079555,93822.0,93802.0,0.010661]
[1767671918228,0.01123655,93821.0,93802.0,0.010661]
[1767671918427,0.01123655,93820.0,93802.0,0.010661]
[1767671919428,0.01123655,93820.0,93801.0,0.18266792]
[1767671920235,0.01123655,93820.0,93802.0,0.010661]
[1767671921238,0.02189555,93820.0,93802.0,0.010661]
[1767671923241,0.01123655,93820.0,93804.0,0.01066]
[1767671924929,0.01123655,93820.0,93801.0,0.18266792]
[1767671926139,0.01123655,93820.0,93805.0,0.01066]
[1767671926933,0.01123655,93820.0,93801.0,0.17732792]
[1767671927133,0.01123655,93820.0,93805.0,0.01066]
[1767671927940,0.01123655,93820.0,93802.0,0.010661]
[1767671934039,0.01123655,93820.0,93804.0,0.010661]
[1767671934235,0.01123655,93820.0,93801.0,0.17732792]
[1767671934236,0.02189555,93820.0,93801.0,0.18798892]
[1767671934542,0.010659,93818.0,93801.0,0.18798892]
[1767671934742,0.010659,93818.0,93801.0,0.15398892]
[1767671935148,0.010659,93818.0,93801.0,0.14332792]
[1767671935843,0.010659,93818.0,93801.0,0.1432822]
[1767671936544,0.01216028,93818.0,93801.0,0.050621]
[1767671936943,0.02281928,93818.0,93801.0,0.050621]
[1767671937945,0.010659,93821.0,93802.0,0.09330017]
[1767671938351,0.02281928,93821.0,93802.0,0.09330017]
[1767671939938,0.010659,93819.0,93802.0,0.09330017]
[1767671940344,0.010659,93820.0,93802.0,0.09330017]
[1767671941344,0.010659,93818.0,93802.0,0.09330017]
[1767671942346,0.010659,93818.0,93802.0,0.08330017]
[1767671945150,0.09064,93822.0,93802.0,0.09396117]
[1767671946150,0.010659,93820.0,93802.0,0.09396117]
[1767671947552,0.010659,93820.0,93802.0,0.08330017]
[1767671948545,0.010659,93818.0,93802.0,0.08330017]
[1767671950051,0.010659,93818.0,93802.0,0.06130017]
[1767671950251,0.010659,93816.0,93802.0,0.06130017]
[1767671952046,0.010659,93814.0,93802.0,0.06130017]
[1767671952247,0.010659,93814.0,93797.0,0.09064]
[1767671952446,0.010659,93814.0,93797.0,0.18634374]
[1767671954856,0.010659,93814.0,93798.0,0.09570374]
[1767671955751,0.010659,93817.0,93798.0,0.09570374]
[1767671955957,0.010659,93817.0,93798.0,0.10636474]
[1767671956954,0.010659,93815.0,93798.0,0.10636474]
[1767671957255,0.010659,93815.0,93798.0,0.09570374]
[1767671958058,0.010659,93815.0,93798.0,0.08470374]
[1767671964564,0.010659,93815.0,93800.0,0.09826075]
[1767671965662,0.010659,93815.0,93800.0,0.08226075]
[1767671966064,0.010659,93820.0,93801.0,0.09570374]
[1767671967665,0.010659,93818.0,93801.0,0.09570374]
[1767671969166,0.09064,93821.0,93801.0,0.09570374]
[1767671970466,0.08974,93821.0,93801.0,0.09570374]
[1767671970667,0.010659,93820.0,93801.0,0.09570374]
[1767671973371,0.010659,93820.0,93801.0,0.08270374]
[1767671974070,0.08974,93821.0,93801.0,0.09336474]
[1767671975672,0.010659,93820.0,93801.0,0.08270374]
[1767671980990,0.010659,93820.0,93801.0,0.06570374]
[1767671984094,0.010659,93820.0,93802.0,0.10618314]
[1767671984593,0.010659,93820.0,93802.0,0.09552214]
[1767671987694,0.010659,93818.0,93802.0,0.09552214]
[1767671988791,0.08974,93821.0,93802.0,0.08052214]
[1767671990190,0.010659,93819.0,93802.0,0.08052214]
[1767671996506,0.010659,93819.0,93802.0,0.06752214]
[1767672001905,0.010659,93817.0,93802.0,0.06752214]
[1767672002904,0.010658,93825.0,93804.0,0.09789405]
[1767672003208,0.010658,93824.0,93810.0,0.1961548]
[1767672003398,0.010658,93823.0,93810.0,0.09789405]
[1767672003598,0.010658,93823.0,93810.0,0.1961548]
[1767672003801,0.010658,93823.0,93810.0,0.09826075]
[1767672004000,0.010658,93824.0,93810.0,0.09826075]
[1767672004307,0.09064,93825.0,93805.0,0.09789405]
[1767672004602,0.010659,93820.0,93800.0,0.09789405]
[1767672004808,0.20111381,93820.0,93800.0,0.09789405]
[1767672004994,0.010659,93814.0,93800.0,0.09789405]
[1767672005196,0.010659,93815.0,93797.0,0.09064]
[1767672005392,0.01066,93813.0,93797.0,0.09064]
[1767672005598,0.0927694,93806.0,93785.0,0.09064]
[1767672005799,0.09064,93815.0,93785.0,0.09064]
[1767672005800,0.10285306,93804.0,93785.0,0.09064]
[1767672006004,0.010662,93796.0,93785.0,0.09064]
[1767672006310,0.1034304,93799.0,93785.0,0.09064]
[1767672006802,0.0927694,93799.0,93785.0,0.09064]
[1767672006993,0.0927694,93804.0,93785.0,0.09064]
[1767672007199,0.1013,93805.0,93790.0,0.09826075]
[1767672008002,0.09064,93805.0,93790.0,0.09826075]
[1767672008701,0.0927694,93810.0,93795.0,0.09826075]
[1767672008901,0.09064,93809.0,93791.0,0.09789405]
[1767672009102,0.1013,93809.0,93791.0,0.09789405]
[1767672011106,0.01066,93807.0,93791.0,0.09789405]
[1767672011814,0.01066,93807.0,93791.0,0.09389405]
[1767672012016,0.01066,93805.0,93790.0,0.09826075]
[1767672013105,0.01066,93808.0,93790.0,0.09826075]
[1767672014109,0.0927694,93809.0,93790.0,0.09826075]
[1767672014110,0.01066,93806.0,93790.0,0.09826075]
[1767672014417,0.1034294,93809.0,93790.0,0.09826075]
[1767672014717,0.01066,93807.0,93789.0,0.010662]
[1767672014910,0.01066,93807.0,93790.0,0.09826075]
[1767672016318,0.01066,93807.0,93791.0,0.010662]
[1767672018019,0.01066,93805.0,93790.0,0.09826075]
[1767672018216,0.01066,93805.0,93788.0,0.10855605]
[1767672018418,0.01066,93805.0,93790.0,0.09826075]
[1767672018721,0.1034294,93809.0,93791.0,0.010662]
[1767672018913,0.0927694,93809.0,93791.0,0.010662]
[1767672019513,0.01066,93807.0,93790.0,0.09826075]
[1767672020116,0.01066,93807.0,93791.0,0.010662]
[1767672020817,0.01066,93807.0,93790.0,0.09826075]
[1767672021324,0.01066,93807.0,93790.0,0.10892275]
[1767672022315,0.0927694,93809.0,93790.0,0.09826075]
[1767672023216,0.01066,93808.0,93790.0,0.10892275]
[1767672024723,0.01066,93808.0,93790.0,0.010662]
[1767672025424,0.1013,93811.0,93792.0,0.10855605]
[1767672025722,0.1013,93811.0,93794.0,0.010662]
[1767672025922,0.01066,93809.0,93792.0,0.09789405]
[1767672027316,0.01066,93809.0,93792.0,0.08889405]
[1767672027722,0.01066,93809.0,93793.0,0.010662]
[1767672028219,0.09064,93811.0,93792.0,0.09955605]
[1767672028619,0.09064,93811.0,93795.0,0.010662]
[1767672029722,0.10285306,93810.0,93795.0,0.010662]
[1767672030619,0.10285306,93810.0,93792.0,0.010662]
[1767672031125,0.10285306,93810.0,93794.0,0.010662]
[1767672031325,0.10285306,93810.0,93791.0,0.010662]
[1767672031526,0.10285306,93810.0,93788.0,0.010662]
[1767672031717,0.01066,93809.0,93790.0,0.010662]
[1767672032627,0.10285306,93810.0,93790.0,0.010662]
[1767672032927,0.10285306,93810.0,93792.0,0.010662]
[1767672033720,0.10285306,93810.0,93786.0,0.09789405]
[1767672035020,0.10285306,93810.0,93786.0,0.08589405]
[1767672035728,0.0927694,93810.0,93786.0,0.08589405]
[1767672035929,0.0927694,93810.0,93794.0,0.010662]
[1767672037227,0.10271574,93810.0,93794.0,0.010662]
[1767672038128,0.00994634,93809.0,93794.0,0.010662]
[1767672038330,0.10774785,93809.0,93794.0,0.010662]
[1767672039630,0.10774785,93809.0,93791.0,0.010662]
[1767672041628,0.10774785,93805.0,93793.0,0.010662]
[1767672041830,0.09780151,93805.0,93790.0,0.010662]
[1767672042131,0.09780151,93805.0,93792.0,0.010662]
[1767672042625,0.09780151,93805.0,93785.0,0.09064]
[1767672043334,0.09780151,93805.0,93789.0,0.010662]
[1767672045135,0.09780151,93805.0,93791.0,0.010662]
[1767672047635,0.09780151,93805.0,93786.0,0.09064]
[1767672047841,0.09780151,93805.0,93793.0,0.010662]
[1767672049035,0.09780151,93805.0,93790.0,0.010662]
[1767672050141,0.10774785,93804.0,93787.0,0.010662]
[1767672050343,0.10774785,93804.0,93786.0,0.086302]
[1767672051943,0.10774785,93803.0,93792.0,0.010662]
[1767672052336,0.09780151,93803.0,93792.0,0.010662]
[1767672058144,0.09780151,93803.0,93787.0,0.09064]
[1767672060146,0.09780151,93803.0,93791.0,0.010662]
[1767672060749,0.10772213,93803.0,93791.0,0.010662]
[1767672061147,0.10772213,93803.0,93787.0,0.09064]
[1767672061148,0.01019242,93807.0,93797.0,0.010661]
[1767672061348,0.010657,93832.0,93801.0,0.00385579]
[1767672061556,0.09064,93831.0,93814.0,0.010659]
[1767672061745,0.09064,93833.0,93814.0,0.010659]
[1767672062045,0.010657,93832.0,93811.0,0.01066]
[1767672062248,0.09064,93833.0,93811.0,0.01066]
[1767672063241,0.01019242,93829.0,93811.0,0.01066]
[1767672063442,0.01019242,93825.0,93811.0,0.01066]
[1767672063950,0.09410766,93826.0,93811.0,0.01066]
[1767672065944,0.10430008,93826.0,93808.0,0.0903]
[1767672066242,0.10430008,93826.0,93811.0,0.01066]
[1767672066446,0.10430008,93826.0,93813.0,0.010659]
[1767672066848,0.09410766,93826.0,93813.0,0.010659]
[1767672067353,0.10430008,93826.0,93813.0,0.010659]
[1767672069556,0.01019242,93825.0,93813.0,0.010659]
[1767672070255,0.01019242,93825.0,93808.0,0.0903]
[1767672070256,0.01019242,93825.0,93816.0,0.010659]
[1767672070558,0.09410766,93826.0,93818.0,0.010659]
[1767672071651,0.09410766,93838.0,93820.0,0.0101239]
[1767672071858,0.010651,93893.0,93823.0,0.0101239]
[1767672071859,0.09410766,93843.0,93823.0,0.0101239]
[1767672072158,0.09410766,93843.0,93830.0,0.010658]
[1767672072357,0.10430008,93843.0,93830.0,0.010658]
[1767672072545,0.09064,93848.0,93830.0,0.010658]
[1767672072546,0.10430008,93842.0,93830.0,0.010658]
[1767672073147,0.01019242,93841.0,93830.0,0.010658]
[1767672073548,0.01019242,93841.0,93830.0,0.005658]
[1767672074156,0.01019242,93841.0,93823.0,0.0101239]
[1767672074460,0.09410766,93842.0,93823.0,0.0101239]
[1767672075251,0.10430008,93841.0,93822.0,0.09136565]
[1767672075454,0.10430008,93840.0,93827.0,0.010658]
[1767672075654,0.10430008,93840.0,93820.0,0.0101239]
[1767672075655,0.09410766,93840.0,93832.0,0.010657]
[1767672075964,0.01019242,93844.0,93834.0,0.010657]
[1767672076669,0.09410766,93846.0,93838.0,0.010657]
[1767672076967,0.01019242,93855.0,93833.0,0.0101239]
[1767672077170,0.01019242,93853.0,93838.0,0.010657]
[1767672077469,0.01019242,93852.0,93838.0,0.010657]
[1767672078061,0.10430008,93852.0,93838.0,0.010657]
[1767672078364,0.10430008,93852.0,93835.0,0.010657]
[1767672078565,0.10430008,93851.0,93835.0,0.010657]
[1767672079557,0.09410766,93851.0,93838.0,0.010657]
[1767672079757,0.10430008,93851.0,93838.0,0.010657]
[1767672081366,0.10430008,93851.0,93835.0,0.010657]
[1767672082264,0.01019242,93847.0,93830.0,0.09064]
[1767672082471,0.10430008,93844.0,93830.0,0.09064]
[1767672082769,0.10430008,93838.0,93826.0,0.06860715]
[1767672082959,0.10430008,93838.0,93827.0,0.09064]
[1767672083360,0.10430008,93838.0,93828.0,0.010658]